[Event "Titled Tuesday Blitz October 31 Late 2023"]
[White "Yurtseven, Melih"]
[Black "De Souza, Cristiano Gomes"]
[WhiteFideId "6312160"]
[BlackFideId "2151758"]
[WhiteElo "2558"]
[BlackElo "2233"]
[Result "1/2-1/2"]
[Round "1"]
[TimeControl "180+1"]
[Date "2023.10.31"]
[WhiteClock "0:00:13"]
[BlackClock "0:00:59"]
[Board "147"]

1. g3 {[%clk 0:02:37]}  Nf6 {[%clk 0:02:59]} 2. Bg2 {[%clk 0:02:36]}  g6 {[%clk 0:03:00]} 3. d3 {[%clk 0:02:36]}  Bg7 {[%clk 0:03:00]} 4. Nd2 {[%clk 0:02:36]}  d5 {[%clk 0:03:00]} 5. Ngf3 {[%clk 0:02:37]}  O-O {[%clk 0:03:00]} 6. O-O {[%clk 0:02:38]}  c5 {[%clk 0:03:01]} 7. e4 {[%clk 0:02:38]}  Nc6 {[%clk 0:03:00]} 8. exd5 {[%clk 0:02:38]}  Nxd5 {[%clk 0:03:00]} 9. Re1 {[%clk 0:02:38]}  h6 {[%clk 0:02:56]} 10. Nc4 {[%clk 0:02:38]}  b5 {[%clk 0:02:47]} 11. Ne3 {[%clk 0:02:37]}  Be6 {[%clk 0:02:27]} 12. a4 {[%clk 0:02:32]}  a6 {[%clk 0:02:19]} 13. Nd2 {[%clk 0:02:20]}  Rc8 {[%clk 0:02:11]} 14. axb5 {[%clk 0:02:12]}  axb5 {[%clk 0:02:11]} 15. Nb3 {[%clk 0:02:00]}  Nxe3 {[%clk 0:02:05]} 16. Rxe3 {[%clk 0:01:56]}  Bxb3 {[%clk 0:02:01]} 17. cxb3 {[%clk 0:01:57]}  Nd4 {[%clk 0:02:01]} 18. Ra7 {[%clk 0:01:47]}  Rc7 {[%clk 0:01:58]} 19. Ra8 {[%clk 0:01:37]}  Qd6 {[%clk 0:01:58]} 20. Rxf8+ {[%clk 0:01:31]}  Kxf8 {[%clk 0:01:55]} 21. Re1 {[%clk 0:01:32]}  e5 {[%clk 0:01:53]} 22. Be3 {[%clk 0:01:29]}  Re7 {[%clk 0:01:50]} 23. Bxd4 {[%clk 0:01:28]}  exd4 {[%clk 0:01:50]} 24. Rxe7 {[%clk 0:01:28]}  Qxe7 {[%clk 0:01:50]} 25. Bc6 {[%clk 0:01:24]}  b4 {[%clk 0:01:41]} 26. Bd5 {[%clk 0:01:16]}  Bf6 {[%clk 0:01:40]} 27. Kg2 {[%clk 0:01:14]}  Kg7 {[%clk 0:01:40]} 28. Bc4 {[%clk 0:01:11]}  h5 {[%clk 0:01:40]} 29. Qf3 {[%clk 0:01:10]}  Bg5 {[%clk 0:01:37]} 30. h3 {[%clk 0:00:31]}  Bc1 {[%clk 0:01:35]} 31. g4 {[%clk 0:00:32]}  hxg4 {[%clk 0:01:35]} 32. hxg4 {[%clk 0:00:33]}  Bxb2 {[%clk 0:01:31]} 33. Qd1 {[%clk 0:00:25]}  Bc3 {[%clk 0:01:29]} 34. Qf3 {[%clk 0:00:24]}  Qf6 {[%clk 0:01:27]} 35. Qxf6+ {[%clk 0:00:17]}  Kxf6 {[%clk 0:01:18]} 36. f4 {[%clk 0:00:18]}  Bd2 {[%clk 0:01:12]} 37. Kf3 {[%clk 0:00:13]}  g5 {[%clk 0:01:12]} 38. f5 {[%clk 0:00:11]}  Ke7 {[%clk 0:01:11]} 39. Ke4 {[%clk 0:00:11]}  f6 {[%clk 0:01:05]} 40. Kd5 {[%clk 0:00:11]}  Bc3 {[%clk 0:01:05]} 41. Kxc5 {[%clk 0:00:12]}  Kd7 {[%clk 0:01:04]} 42. Be6+ {[%clk 0:00:12]}  Ke7 {[%clk 0:01:04]} 43. Kc6 {[%clk 0:00:12]}  Bb2 {[%clk 0:01:04]} 44. Kd5 {[%clk 0:00:13]}  Bc3 {[%clk 0:01:04]} 45. Kc5 {[%clk 0:00:14]}  Kf8 {[%clk 0:01:03]} 46. Kd6 {[%clk 0:00:14]}  Bb2 {[%clk 0:01:01]} 47. Bc4 {[%clk 0:00:15]}  Bc3 {[%clk 0:01:00]} 48. Ke6 {[%clk 0:00:16]}  Kg7 {[%clk 0:01:00]} 49. Ke7 {[%clk 0:00:16]}  Bb2 {[%clk 0:01:00]} 50. Be6 {[%clk 0:00:17]}  Bc3 {[%clk 0:01:00]} 51. Ke8 {[%clk 0:00:16]}  Bb2 {[%clk 0:01:00]} 52. Kd7 {[%clk 0:00:16]}  Bc3 {[%clk 0:01:01]} 53. Ke7 {[%clk 0:00:17]}  Bb2 {[%clk 0:01:01]} 54. Kd6 {[%clk 0:00:18]}  Bc3 {[%clk 0:01:01]} 55. Kc5 {[%clk 0:00:19]}  Kf8 {[%clk 0:01:01]} 56. Kc4 {[%clk 0:00:17]}  Ke7 {[%clk 0:01:01]} 57. Bd5 {[%clk 0:00:17]}  Kd6 {[%clk 0:01:01]} 58. Bf7 {[%clk 0:00:15]}  Ke5 {[%clk 0:01:01]} 59. Bh5 {[%clk 0:00:15]}  Kd6 {[%clk 0:01:01]} 60. Kb5 {[%clk 0:00:15]}  Bd2 {[%clk 0:00:59]} 61. Kc4 {[%clk 0:00:15]}  Bc3 {[%clk 0:00:59]} 62. Kb5 {[%clk 0:00:15]}  Bd2 {[%clk 0:00:59]} 63. Kc4 {[%clk 0:00:13]}  Bc3 {[%clk 0:00:59]} 1/2-1/2


[Site "https://www.chess.com"]

[Event "Titled Tuesday Blitz October 31 Late 2023"]
[White "Osmonbekov, Talaibek"]
[Black "Wartiovaara, Oliver"]
[WhiteFideId "2017253"]
[BlackFideId "513024"]
[WhiteElo "2233"]
[BlackElo "2557"]
[Result "0-1"]
[Round "1"]
[TimeControl "180+1"]
[Date "2023.10.31"]
[WhiteClock "0:00:00"]
[BlackClock "0:00:43"]
[Board "148"]

1. d4 {[%clk 0:02:58]}  g6 {[%clk 0:02:56]} 2. e4 {[%clk 0:02:56]}  Bg7 {[%clk 0:02:57]} 3. Nc3 {[%clk 0:02:56]}  c5 {[%clk 0:02:55]} 4. Nf3 {[%clk 0:02:54]}  cxd4 {[%clk 0:02:54]} 5. Nxd4 {[%clk 0:02:54]}  Nc6 {[%clk 0:02:55]} 6. Be3 {[%clk 0:02:52]}  Nf6 {[%clk 0:02:54]} 7. Bc4 {[%clk 0:02:48]}  O-O {[%clk 0:02:53]} 8. f3 {[%clk 0:02:46]}  Qa5 {[%clk 0:02:31]} 9. Qd2 {[%clk 0:02:43]}  Qb4 {[%clk 0:02:28]} 10. Nxc6 {[%clk 0:02:25]}  bxc6 {[%clk 0:02:25]} 11. Bb3 {[%clk 0:02:18]}  d5 {[%clk 0:02:19]} 12. exd5 {[%clk 0:02:00]}  cxd5 {[%clk 0:02:18]} 13. Nxd5 {[%clk 0:01:55]}  Nxd5 {[%clk 0:02:18]} 14. Bxd5 {[%clk 0:01:50]}  Qxb2 {[%clk 0:02:16]} 15. O-O {[%clk 0:01:44]}  Rb8 {[%clk 0:01:38]} 16. Rad1 {[%clk 0:01:31]}  Ba6 {[%clk 0:01:34]} 17. Rfe1 {[%clk 0:01:22]}  Bc3 {[%clk 0:01:31]} 18. Qf2 {[%clk 0:01:10]}  e6 {[%clk 0:01:22]} 19. Bb3 {[%clk 0:00:57]}  Rfd8 {[%clk 0:01:04]} 20. Bxa7 {[%clk 0:00:38]}  Bxe1 {[%clk 0:01:01]} 21. Rxe1 {[%clk 0:00:36]}  Rbc8 {[%clk 0:00:57]} 22. h3 {[%clk 0:00:20]}  Bc4 {[%clk 0:00:54]} 23. Bb6 {[%clk 0:00:12]}  Rd7 {[%clk 0:00:45]} 24. Kh2 {[%clk 0:00:05]}  Bxb3 {[%clk 0:00:45]} 25. cxb3 {[%clk 0:00:05]}  Qxf2 {[%clk 0:00:42]} 26. Bxf2 {[%clk 0:00:04]}  Rc2 {[%clk 0:00:42]} 27. Bd4 {[%clk 0:00:03]}  Rxd4 {[%clk 0:00:42]} 28. a4 {[%clk 0:00:01]}  Rdd2 {[%clk 0:00:41]} 29. Re3 {[%clk 0:00:02]}  Rxg2+ {[%clk 0:00:41]} 30. Kh1 {[%clk 0:00:02]}  Rge2 {[%clk 0:00:41]} 31. Rxe2 {[%clk 0:00:02]}  Rxe2 {[%clk 0:00:42]} 32. b4 {[%clk 0:00:02]}  Ra2 {[%clk 0:00:42]} 33. a5 {[%clk 0:00:02]}  Kf8 {[%clk 0:00:42]} 34. Kg1 {[%clk 0:00:00]}  Ke7 {[%clk 0:00:43]} 0-1


[Site "https://www.chess.com"]

[Event "Titled Tuesday Blitz October 31 Late 2023"]
[White "Sarkar, Justin"]
[Black "Aldokhin, Ivan"]
[WhiteFideId "2010011"]
[BlackFideId "24115720"]
[WhiteElo "2231"]
[BlackElo "2555"]
[Result "0-1"]
[Round "1"]
[TimeControl "180+1"]
[Date "2023.10.31"]
[WhiteClock "0:00:00"]
[BlackClock "0:02:02"]
[Board "150"]

1. e4 {[%clk 0:02:45]}  c5 {[%clk 0:02:59]} 2. Nf3 {[%clk 0:02:44]}  e6 {[%clk 0:03:00]} 3. d4 {[%clk 0:02:43]}  cxd4 {[%clk 0:03:00]} 4. Nxd4 {[%clk 0:02:43]}  a6 {[%clk 0:02:59]} 5. c4 {[%clk 0:02:42]}  Qc7 {[%clk 0:02:59]} 6. Nc3 {[%clk 0:02:38]}  Nf6 {[%clk 0:03:00]} 7. a3 {[%clk 0:02:22]}  d6 {[%clk 0:03:00]} 8. Be2 {[%clk 0:02:05]}  Nbd7 {[%clk 0:03:01]} 9. O-O {[%clk 0:02:04]}  b6 {[%clk 0:03:01]} 10. b4 {[%clk 0:02:00]}  Bb7 {[%clk 0:03:02]} 11. f3 {[%clk 0:01:53]}  b5 {[%clk 0:02:51]} 12. Be3 {[%clk 0:00:57]}  bxc4 {[%clk 0:02:51]} 13. Rc1 {[%clk 0:00:57]}  Rc8 {[%clk 0:02:41]} 14. a4 {[%clk 0:00:45]}  Be7 {[%clk 0:02:36]} 15. b5 {[%clk 0:00:43]}  a5 {[%clk 0:02:32]} 16. Nc6 {[%clk 0:00:24]}  Bxc6 {[%clk 0:02:32]} 17. bxc6 {[%clk 0:00:24]}  Qxc6 {[%clk 0:02:25]} 18. Bxc4 {[%clk 0:00:19]}  O-O {[%clk 0:02:16]} 19. Bb5 {[%clk 0:00:19]}  Qb7 {[%clk 0:02:12]} 20. Qe2 {[%clk 0:00:15]}  Nc5 {[%clk 0:02:12]} 21. Rb1 {[%clk 0:00:09]}  Qa8 {[%clk 0:02:11]} 22. Rfc1 {[%clk 0:00:08]}  Rc7 {[%clk 0:02:09]} 23. Bc4 {[%clk 0:00:02]}  Rd8 {[%clk 0:02:02]} 24. Nb5 {[%clk 0:00:00]}  Rcc8 {[%clk 0:02:02]} 0-1


[Site "https://www.chess.com"]

[Event "Titled Tuesday Blitz October 31 Late 2023"]
[White "Hajiyev, Kanan"]
[Black "Uddin, Mubassar"]
[WhiteFideId "13404148"]
[BlackFideId "2093944"]
[WhiteElo "2552"]
[BlackElo "2226"]
[Result "1-0"]
[Round "1"]
[TimeControl "180+1"]
[Date "2023.10.31"]
[WhiteClock "0:00:36"]
[BlackClock "0:00:08"]
[Board "151"]

1. d4 {[%clk 0:03:00]}  d5 {[%clk 0:02:49]} 2. Nf3 {[%clk 0:03:01]}  Bf5 {[%clk 0:02:46]} 3. c4 {[%clk 0:02:54]}  e6 {[%clk 0:02:45]} 4. Nc3 {[%clk 0:02:54]}  Nf6 {[%clk 0:02:40]} 5. Bg5 {[%clk 0:02:53]}  c6 {[%clk 0:02:38]} 6. e3 {[%clk 0:02:52]}  Be7 {[%clk 0:02:34]} 7. Be2 {[%clk 0:02:52]}  dxc4 {[%clk 0:02:31]} 8. Bxc4 {[%clk 0:02:52]}  O-O {[%clk 0:02:32]} 9. O-O {[%clk 0:02:52]}  b5 {[%clk 0:02:30]} 10. Be2 {[%clk 0:02:50]}  Nbd7 {[%clk 0:02:30]} 11. Rc1 {[%clk 0:02:50]}  a6 {[%clk 0:02:27]} 12. Nh4 {[%clk 0:02:50]}  Bg6 {[%clk 0:02:22]} 13. Nxg6 {[%clk 0:02:44]}  hxg6 {[%clk 0:02:23]} 14. Bf3 {[%clk 0:02:44]}  Rc8 {[%clk 0:02:20]} 15. a4 {[%clk 0:02:44]}  Qb6 {[%clk 0:02:17]} 16. Ne4 {[%clk 0:02:40]}  Rfe8 {[%clk 0:02:05]} 17. axb5 {[%clk 0:02:29]}  cxb5 {[%clk 0:01:53]} 18. Rxc8 {[%clk 0:02:19]}  Rxc8 {[%clk 0:01:51]} 19. h4 {[%clk 0:02:14]}  Qc7 {[%clk 0:01:41]} 20. Qa1 {[%clk 0:02:05]}  a5 {[%clk 0:01:36]} 21. Bf4 {[%clk 0:01:52]}  Qc2 {[%clk 0:01:28]} 22. Nd6 {[%clk 0:01:34]}  Bxd6 {[%clk 0:01:08]} 23. Bxd6 {[%clk 0:01:35]}  a4 {[%clk 0:01:07]} 24. Qa3 {[%clk 0:01:33]}  Nb6 {[%clk 0:01:01]} 25. Bc5 {[%clk 0:01:30]}  Nc4 {[%clk 0:00:59]} 26. Qb4 {[%clk 0:01:27]}  Qxb2 {[%clk 0:00:54]} 27. Qxb2 {[%clk 0:01:26]}  Nxb2 {[%clk 0:00:55]} 28. Rb1 {[%clk 0:01:26]}  a3 {[%clk 0:00:36]} 29. Bxa3 {[%clk 0:01:26]}  Nc4 {[%clk 0:00:37]} 30. Bc5 {[%clk 0:01:23]}  Rb8 {[%clk 0:00:35]} 31. Be2 {[%clk 0:01:22]}  Nd7 {[%clk 0:00:31]} 32. Bxc4 {[%clk 0:01:21]}  bxc4 {[%clk 0:00:32]} 33. Rc1 {[%clk 0:01:17]}  Rc8 {[%clk 0:00:23]} 34. Rxc4 {[%clk 0:01:16]}  e5 {[%clk 0:00:24]} 35. Kh2 {[%clk 0:01:12]}  exd4 {[%clk 0:00:24]} 36. exd4 {[%clk 0:01:12]}  f5 {[%clk 0:00:24]} 37. Kg3 {[%clk 0:01:10]}  Kf7 {[%clk 0:00:25]} 38. Kf4 {[%clk 0:01:08]}  Ke6 {[%clk 0:00:25]} 39. Kg5 {[%clk 0:01:04]}  Kd5 {[%clk 0:00:23]} 40. Rc2 {[%clk 0:01:02]}  Rc6 {[%clk 0:00:24]} 41. Re2 {[%clk 0:00:53]}  Nxc5 {[%clk 0:00:14]} 42. dxc5 {[%clk 0:00:54]}  Rxc5 {[%clk 0:00:15]} 43. Kxg6 {[%clk 0:00:53]}  f4 {[%clk 0:00:13]} 44. Kxg7 {[%clk 0:00:49]}  Kd4 {[%clk 0:00:14]} 45. Kg6 {[%clk 0:00:44]}  Kd3 {[%clk 0:00:13]} 46. Re1 {[%clk 0:00:42]}  Rc2 {[%clk 0:00:13]} 47. h5 {[%clk 0:00:38]}  Rxf2 {[%clk 0:00:13]} 48. Rg1 {[%clk 0:00:39]}  Re2 {[%clk 0:00:07]} 49. h6 {[%clk 0:00:40]}  Re6+ {[%clk 0:00:08]} 50. Kg5 {[%clk 0:00:38]}  Re7 {[%clk 0:00:07]} 51. Kxf4 {[%clk 0:00:36]}  Rh7 {[%clk 0:00:08]} 52. Rh1 {[%clk 0:00:35]}  Kd4 {[%clk 0:00:07]} 53. g4 {[%clk 0:00:35]}  Kd5 {[%clk 0:00:08]} 54. Kf5 {[%clk 0:00:36]}  Kd6 {[%clk 0:00:07]} 55. g5 {[%clk 0:00:36]}  Rh8 {[%clk 0:00:08]} 56. g6 {[%clk 0:00:36]}  Rf8+ {[%clk 0:00:09]} 57. Kg5 {[%clk 0:00:36]}  Ke7 {[%clk 0:00:09]} 58. h7 {[%clk 0:00:36]}  Rh8 {[%clk 0:00:09]} 59. g7 {[%clk 0:00:36]}  Kf7 {[%clk 0:00:08]} 60. gxh8=Q {[%clk 0:00:35]}  Ke6 {[%clk 0:00:09]} 61. Qg8+ {[%clk 0:00:35]}  Kd7 {[%clk 0:00:09]} 62. Qg6 {[%clk 0:00:35]}  Kc8 {[%clk 0:00:08]} 63. h8=Q+ {[%clk 0:00:35]}  Kb7 {[%clk 0:00:08]} 64. Rh7# {[%clk 0:00:36]} 1-0


[Site "https://www.chess.com"]

[Event "Titled Tuesday Blitz October 31 Late 2023"]
[White "Golubev, Mikhail"]
[Black "Modric, Nesa"]
[WhiteFideId "14100983"]
[BlackFideId "922579"]
[WhiteElo "2549"]
[BlackElo "2220"]
[Result "1-0"]
[Round "1"]
[TimeControl "180+1"]
[Date "2023.10.31"]
[WhiteClock "0:00:43"]
[BlackClock "0:00:00"]
[Board "153"]

1. e4 {[%clk 0:02:58]}  d5 {[%clk 0:03:00]} 2. exd5 {[%clk 0:02:57]}  Qxd5 {[%clk 0:03:01]} 3. Nf3 {[%clk 0:02:57]}  Bg4 {[%clk 0:03:00]} 4. Be2 {[%clk 0:02:56]}  Nc6 {[%clk 0:03:00]} 5. d4 {[%clk 0:02:56]}  O-O-O {[%clk 0:02:46]} 6. c4 {[%clk 0:02:55]}  Qd7 {[%clk 0:02:40]} 7. d5 {[%clk 0:02:38]}  Bxf3 {[%clk 0:02:32]} 8. Bxf3 {[%clk 0:02:35]}  Ne5 {[%clk 0:02:31]} 9. O-O {[%clk 0:02:20]}  Nxf3+ {[%clk 0:02:31]} 10. Qxf3 {[%clk 0:02:20]}  e6 {[%clk 0:02:26]} 11. Nc3 {[%clk 0:02:18]}  Nf6 {[%clk 0:02:22]} 12. Bg5 {[%clk 0:02:10]}  Be7 {[%clk 0:01:58]} 13. Rad1 {[%clk 0:02:09]}  h6 {[%clk 0:01:40]} 14. Bxf6 {[%clk 0:02:07]}  Bxf6 {[%clk 0:01:37]} 15. Nb5 {[%clk 0:02:00]}  Kb8 {[%clk 0:01:13]} 16. Qe3 {[%clk 0:01:54]}  b6 {[%clk 0:01:03]} 17. Qa3 {[%clk 0:01:51]}  a5 {[%clk 0:00:45]} 18. b4 {[%clk 0:01:50]}  Be7 {[%clk 0:00:37]} 19. d6 {[%clk 0:01:41]}  Bxd6 {[%clk 0:00:27]} 20. Nxd6 {[%clk 0:01:38]}  cxd6 {[%clk 0:00:25]} 21. bxa5 {[%clk 0:01:36]}  Qa7 {[%clk 0:00:19]} 22. Rb1 {[%clk 0:01:26]}  Ka8 {[%clk 0:00:10]} 23. Rxb6 {[%clk 0:01:24]}  Rd7 {[%clk 0:00:07]} 24. Rfb1 {[%clk 0:01:16]}  Rhd8 {[%clk 0:00:07]} 25. h3 {[%clk 0:01:01]}  d5 {[%clk 0:00:07]} 26. c5 {[%clk 0:00:54]}  d4 {[%clk 0:00:08]} 27. c6 {[%clk 0:00:54]}  Rc7 {[%clk 0:00:08]} 28. Rb7 {[%clk 0:00:46]}  Rxb7 {[%clk 0:00:06]} 29. cxb7+ {[%clk 0:00:45]}  Kb8 {[%clk 0:00:00]} 30. Qg3+ {[%clk 0:00:43]} 1-0


[Site "https://www.chess.com"]

[Event "Titled Tuesday Blitz October 31 Late 2023"]
[White "ChessDojo"]
[Black "Roebers, Eline"]
[BlackFideId "1058401"]
[WhiteElo "2214"]
[BlackElo "2549"]
[Result "0-1"]
[Round "1"]
[TimeControl "180+1"]
[Date "2023.10.31"]
[WhiteClock "0:00:59"]
[BlackClock "0:01:34"]
[Board "154"]

1. c4 {[%clk 0:02:59]}  f5 {[%clk 0:02:58]} 2. Nc3 {[%clk 0:02:59]}  Nf6 {[%clk 0:02:58]} 3. Nf3 {[%clk 0:02:58]}  g6 {[%clk 0:02:57]} 4. g3 {[%clk 0:02:58]}  Bg7 {[%clk 0:02:57]} 5. Bg2 {[%clk 0:02:59]}  O-O {[%clk 0:02:58]} 6. O-O {[%clk 0:02:59]}  d6 {[%clk 0:02:58]} 7. d3 {[%clk 0:02:58]}  e5 {[%clk 0:02:57]} 8. Bg5 {[%clk 0:02:58]}  h6 {[%clk 0:02:48]} 9. Bxf6 {[%clk 0:02:58]}  Qxf6 {[%clk 0:02:47]} 10. Nd5 {[%clk 0:02:59]}  Qf7 {[%clk 0:02:46]} 11. h4 {[%clk 0:02:57]}  c6 {[%clk 0:02:45]} 12. Nc3 {[%clk 0:02:55]}  Be6 {[%clk 0:02:45]} 13. b4 {[%clk 0:02:52]}  e4 {[%clk 0:02:40]} 14. dxe4 {[%clk 0:02:12]}  Bxc3 {[%clk 0:02:35]} 15. Rc1 {[%clk 0:02:13]}  Bg7 {[%clk 0:02:31]} 16. exf5 {[%clk 0:02:13]}  Bxf5 {[%clk 0:02:26]} 17. Qxd6 {[%clk 0:02:08]}  Nd7 {[%clk 0:02:19]} 18. Nd4 {[%clk 0:01:59]}  Be5 {[%clk 0:02:15]} 19. Nxf5 {[%clk 0:01:49]}  Bxd6 {[%clk 0:02:12]} 20. Nxh6+ {[%clk 0:01:45]}  Kg7 {[%clk 0:02:05]} 21. Nxf7 {[%clk 0:01:45]}  Rxf7 {[%clk 0:02:06]} 22. c5 {[%clk 0:01:44]}  Bf8 {[%clk 0:02:01]} 23. Rfd1 {[%clk 0:01:43]}  Re8 {[%clk 0:02:00]} 24. e3 {[%clk 0:01:42]}  Ne5 {[%clk 0:01:55]} 25. a4 {[%clk 0:01:36]}  Ng4 {[%clk 0:01:49]} 26. Rc2 {[%clk 0:01:33]}  Re5 {[%clk 0:01:48]} 27. Bh3 {[%clk 0:01:28]}  Nf6 {[%clk 0:01:43]} 28. Rcd2 {[%clk 0:01:26]}  Nd5 {[%clk 0:01:42]} 29. Rd4 {[%clk 0:01:21]}  a5 {[%clk 0:01:38]} 30. e4 {[%clk 0:01:19]}  Nxb4 {[%clk 0:01:37]} 31. Rd7 {[%clk 0:01:16]}  Bxc5 {[%clk 0:01:36]} 32. Rxf7+ {[%clk 0:01:06]}  Kxf7 {[%clk 0:01:37]} 33. Rd7+ {[%clk 0:00:59]}  Re7 {[%clk 0:01:34]} 0-1


[Site "https://www.chess.com"]

[Event "Titled Tuesday Blitz October 31 Late 2023"]
[White "dodoucb"]
[Black "Souza, Gustavo Horokoski De"]
[BlackFideId "2146584"]
[WhiteElo "2544"]
[BlackElo "2175"]
[Result "1-0"]
[Round "1"]
[TimeControl "180+1"]
[Date "2023.10.31"]
[WhiteClock "0:00:05"]
[BlackClock "0:00:01"]
[Board "157"]

1. d4 {[%clk 0:03:00]}  Nf6 {[%clk 0:02:51]} 2. c4 {[%clk 0:03:00]}  c5 {[%clk 0:02:51]} 3. d5 {[%clk 0:03:00]}  e6 {[%clk 0:02:51]} 4. Nc3 {[%clk 0:03:00]}  exd5 {[%clk 0:02:52]} 5. cxd5 {[%clk 0:03:00]}  d6 {[%clk 0:02:52]} 6. e4 {[%clk 0:03:01]}  g6 {[%clk 0:02:53]} 7. Be2 {[%clk 0:03:01]}  Bg7 {[%clk 0:02:53]} 8. Nf3 {[%clk 0:03:02]}  Bg4 {[%clk 0:02:52]} 9. Nd2 {[%clk 0:03:00]}  Bxe2 {[%clk 0:02:51]} 10. Qxe2 {[%clk 0:03:01]}  O-O {[%clk 0:02:51]} 11. O-O {[%clk 0:03:02]}  Nbd7 {[%clk 0:02:50]} 12. Nc4 {[%clk 0:02:59]}  Qe7 {[%clk 0:02:44]} 13. Bf4 {[%clk 0:02:57]}  Ne8 {[%clk 0:02:41]} 14. Rad1 {[%clk 0:02:48]}  a6 {[%clk 0:02:40]} 15. a4 {[%clk 0:02:48]}  Ne5 {[%clk 0:02:37]} 16. Nxe5 {[%clk 0:02:27]}  Bxe5 {[%clk 0:02:36]} 17. Bxe5 {[%clk 0:02:27]}  Qxe5 {[%clk 0:02:36]} 18. f4 {[%clk 0:02:28]}  Qe7 {[%clk 0:02:34]} 19. e5 {[%clk 0:02:26]}  Rd8 {[%clk 0:02:29]} 20. Rfe1 {[%clk 0:02:25]}  dxe5 {[%clk 0:02:23]} 21. fxe5 {[%clk 0:02:23]}  Ng7 {[%clk 0:02:23]} 22. d6 {[%clk 0:02:12]}  Qh4 {[%clk 0:02:16]} 23. Nd5 {[%clk 0:02:02]}  Nf5 {[%clk 0:02:11]} 24. Qf2 {[%clk 0:01:26]}  Qg5 {[%clk 0:01:56]} 25. Re4 {[%clk 0:01:18]}  Kg7 {[%clk 0:01:49]} 26. Nf6 {[%clk 0:01:02]}  Nxd6 {[%clk 0:01:38]} 27. exd6 {[%clk 0:00:32]}  Qxf6 {[%clk 0:01:35]} 28. Qxc5 {[%clk 0:00:32]}  Rfe8 {[%clk 0:01:26]} 29. Rxe8 {[%clk 0:00:29]}  Rxe8 {[%clk 0:01:27]} 30. d7 {[%clk 0:00:30]}  Rd8 {[%clk 0:01:26]} 31. b4 {[%clk 0:00:29]}  Qe6 {[%clk 0:01:06]} 32. Qd4+ {[%clk 0:00:27]}  Qf6 {[%clk 0:01:06]} 33. Qd5 {[%clk 0:00:24]}  Qb6+ {[%clk 0:00:54]} 34. Kh1 {[%clk 0:00:19]}  Qc6 {[%clk 0:00:37]} 35. Qe5+ {[%clk 0:00:16]}  Qf6 {[%clk 0:00:35]} 36. Qc7 {[%clk 0:00:15]}  h5 {[%clk 0:00:22]} 37. h3 {[%clk 0:00:15]}  b5 {[%clk 0:00:21]} 38. a5 {[%clk 0:00:14]}  h4 {[%clk 0:00:20]} 39. Qb6 {[%clk 0:00:08]}  Qe7 {[%clk 0:00:17]} 40. Qd4+ {[%clk 0:00:07]}  Kh7 {[%clk 0:00:15]} 41. Qd5 {[%clk 0:00:07]}  Kg7 {[%clk 0:00:12]} 42. Qc5 {[%clk 0:00:06]}  Qf6 {[%clk 0:00:10]} 43. Qc7 {[%clk 0:00:05]}  Kh7 {[%clk 0:00:10]} 44. Qd6 {[%clk 0:00:03]}  Qxd6 {[%clk 0:00:07]} 45. Rxd6 {[%clk 0:00:03]}  Kg7 {[%clk 0:00:07]} 46. Kh2 {[%clk 0:00:03]}  Kf8 {[%clk 0:00:07]} 47. Rxa6 {[%clk 0:00:04]}  Rxd7 {[%clk 0:00:07]} 48. Rb6 {[%clk 0:00:05]}  Rd5 {[%clk 0:00:07]} 49. a6 {[%clk 0:00:05]}  Rd7 {[%clk 0:00:04]} 50. Rb7 {[%clk 0:00:05]}  Rd6 {[%clk 0:00:01]} 51. a7 {[%clk 0:00:05]} 1-0


[Site "https://www.chess.com"]

[Event "Titled Tuesday Blitz October 31 Late 2023"]
[White "Fernandez Hernandez, Gerardo"]
[Black "ArmanGhevondyanchess"]
[WhiteFideId "2207400"]
[WhiteElo "2167"]
[BlackElo "2539"]
[Result "0-1"]
[Round "1"]
[TimeControl "180+1"]
[Date "2023.10.31"]
[WhiteClock "0:01:30"]
[BlackClock "0:02:44"]
[Board "158"]

1. e4 {[%clk 0:03:00]}  c5 {[%clk 0:02:59]} 2. Nc3 {[%clk 0:02:59]}  Nc6 {[%clk 0:02:59]} 3. f4 {[%clk 0:02:59]}  g6 {[%clk 0:03:00]} 4. Nf3 {[%clk 0:02:59]}  Bg7 {[%clk 0:03:00]} 5. a3 {[%clk 0:03:00]}  d6 {[%clk 0:03:01]} 6. Bc4 {[%clk 0:02:57]}  e6 {[%clk 0:03:02]} 7. d3 {[%clk 0:02:55]}  Nge7 {[%clk 0:03:02]} 8. O-O {[%clk 0:02:50]}  O-O {[%clk 0:03:02]} 9. Qe1 {[%clk 0:02:50]}  Nd4 {[%clk 0:03:02]} 10. Nxd4 {[%clk 0:02:43]}  cxd4 {[%clk 0:03:00]} 11. Ne2 {[%clk 0:02:39]}  d5 {[%clk 0:02:58]} 12. Bb3 {[%clk 0:02:20]}  dxe4 {[%clk 0:02:58]} 13. dxe4 {[%clk 0:02:21]}  d3 {[%clk 0:02:59]} 14. Ng3 {[%clk 0:02:15]}  Bd7 {[%clk 0:02:53]} 15. cxd3 {[%clk 0:02:09]}  Qb6+ {[%clk 0:02:53]} 16. Be3 {[%clk 0:01:55]}  Qxb3 {[%clk 0:02:52]} 17. f5 {[%clk 0:01:55]}  exf5 {[%clk 0:02:49]} 18. exf5 {[%clk 0:01:51]}  Nxf5 {[%clk 0:02:47]} 19. Nxf5 {[%clk 0:01:47]}  Bxf5 {[%clk 0:02:48]} 20. Rxf5 {[%clk 0:01:45]}  gxf5 {[%clk 0:02:47]} 21. Qh4 {[%clk 0:01:36]}  Qxd3 {[%clk 0:02:44]} 22. Bh6 {[%clk 0:01:30]}  Qd4+ {[%clk 0:02:44]} 0-1


[Site "https://www.chess.com"]